[Event "Cesenatico Open 2019"]
[Site "Cesenatico"]
[Date "2019.09.07"]
[Round "8"]
[White "Schaefer, Michael"]
[Black "Dragojlovic, Andjelko"]
[Result "0-1"]
[ECO "A34"]
[WhiteElo "2181"]
[BlackElo "2293"]
[Annotator "ChessBase"]
[PlyCount "102"]
[EventDate "2019.09.01"]
[EventType "swiss"]
[EventCountry "ITA"]
[SourceTitle "playchess.com"]
[Source "ChessBase"]
[SourceQuality "1"]
[TimeControl "40/6000:900"]

1. c4 {[%emt 0:01:00]} Nf6 {[%emt 0:00:00]} 2. Nf3 {[%emt 0:00:00]} g6 {[%emt 0:00:00]} 3. Nc3 {[%emt 0:00:00]} c5 {[%emt 0:00:00]} 4. g3 {[%emt 0:00:00]} Bg7 5. Bg2 {[%emt 0:00:00]} O-O {[%emt 0:00:00]} 6. O-O d5 {[%emt 0:00:00]} 7. cxd5 {[%emt 0:00:00]} Nxd5 {[%emt 0:00:00]} 8. Ng5 Nc7 {[%emt 0:02:00]} 9. d3 {[%emt 0:00:00]} Nc6 {[%emt 0:01:00]} 10. Bxc6 {[%emt 0:00:00]} bxc6 {[%emt 0:00:00]} 11. Qa4 {[%emt 0:02:00]} Bd7 {[%emt 0:04:00]} 12. Qh4 {[%emt 0:04:00]} h6 {[%emt 0:00:00]} 13. Nge4 {[%emt 0:00:00]} g5 {[%emt 0:00:00]} 14. Qh5 {[%emt 0:00:00]} Ne6 {[%emt 0:00:00]} 15. h4 {[%emt 0:00:00]} f5 {[%emt 0:00:00]} 16. hxg5 {[%emt 0:06:00]} fxe4 {[%emt 0:00:00]} 17. gxh6 {[%emt 0:00:00]} Bxc3 {[%emt 0:01:00]} 18. Qg6+ {[%emt 0:04:00]} Bg7 19. hxg7 {[%emt 0:00:00]} Rf6 {[%emt 0:04:00]} 20. Qxe4 {[%emt 0:01:00]} Nd4 {[%emt 0:19:00]} 21. Qh4 {[%emt 0:08:00]} Kxg7 {[%emt 0:00:00]} 22. Kg2 Bf5 {[%emt 0:00:00]} 23. e4 {[%emt 0:03:00]} Nf3 {[%emt 0:00:00]} 24. Qh5 {[%emt 0:06:00]} Bg6 {[%emt 0:00:00]} 25. Qh6+ {[%emt 0:06:00]} Kf7 26. Qe3 {[%emt 0:00:00]} Qd4 {[%emt 0:00:00]} 27. Qxd4 {[%emt 0:00:00]} Nxd4 {[%emt 0:00:00]} 28. f3 {[%emt 0:03:00]} e5 {[%emt 0:00:00]} 29. Bg5 {[%emt 0:03:00]} Rd6 {[%emt 0:00:00]} 30. Rac1 {[%emt 0:00:00]} Ne6 {[%emt 0:00:00]} 31. Be3 {[%emt 0:00:00]} Rxd3 {[%emt 0:00:00]} 32. Bxc5 {[%emt 0:00:00]} a5 33. Bg1 {[%emt 0:04:00]} Ra6 {[%emt 0:00:00]} 34. Rc4 {[%emt 0:00:00]} Ke7 {[%emt 0:00:00]} 35. b3 {[%emt 0:08:00]} Kd6 {[%emt 0:00:00]} 36. f4 {[%emt 0:06:00]} Nd4 {[%emt 0:00:00]} 37. f5 {[%emt 0:00:00]} Bh5 {[%emt 0:02:00]} 38. Bxd4 {[%emt 0:00:00]} exd4 {[%emt 0:01:00]} 39. Re1 {[%emt 0:01:00]} Rd2+ 40. Kh3 {[%emt 0:00:00]} Be2 {[%emt 0:00:00]} 41. g4 Ke5 {[%emt 0:14:00]} 42. Rc5+ {[%emt 0:17:00]} Kxe4 {[%emt 0:00:00]} 43. f6 Ra8 {[%emt 0:00:00]} 44. Kg3 {[%emt 0:05:00]} d3 {[%emt 0:10:00]} 45. g5 {[%emt 0:05:00]} Rd1 {[%emt 0:02:00]} 46. Kf2 {[%emt 0:04:06]} Rxe1 47. Kxe1 {[%emt 0:00:00]} Bh5 {[%emt 0:00:00]} 48. Rxc6 {[%emt 0:00:00]} Bg6 {[%emt 0:00:00]} 49. Rc5 {[%emt 0:02:51]} Rh8 {[%emt 0:02:00]} 50. Rc7 {[%emt 0:02:07]} Rh1+ {[%emt 0:00:00]} 51. Kd2 {[%emt 0:00:09]} Rh2+ {[%emt 0:00:00]} 0-1

[Event "Cesenatico Open 2019"]
[Site "Cesenatico"]
[Date "2019.09.07"]
[Round "8"]
[White "Dobboletta, Alex"]
[Black "Stromboli, Carlo"]
[Result "1/2-1/2"]
[ECO "E14"]
[WhiteElo "2176"]
[BlackElo "2270"]
[Annotator "ChessBase"]
[PlyCount "96"]
[EventDate "2019.09.01"]
[EventType "swiss"]
[EventCountry "ITA"]
[SourceTitle "playchess.com"]
[Source "ChessBase"]
[SourceQuality "1"]
[TimeControl "40/6000:900"]

1. d4 {[%emt 0:10:00]} Nf6 {[%emt 0:00:00]} 2. Nf3 {[%emt 0:00:00]} e6 {[%emt 0:09:00]} 3. e3 {[%emt 0:00:00]} d5 {[%emt 0:00:00]} 4. c4 {[%emt 0:00:00]} a6 5. b3 {[%emt 0:03:00]} b6 {[%emt 0:05:00]} 6. Bd3 {[%emt 0:03:00]} Nbd7 {[%emt 0:00:00]} 7. O-O {[%emt 0:01:00]} Bb7 {[%emt 0:04:00]} 8. Nc3 {[%emt 0:03:00]} Bd6 {[%emt 0:02:00]} 9. Bb2 {[%emt 0:02:00]} O-O {[%emt 0:06:00]} 10. Rc1 {[%emt 0:01:00]} Ne4 {[%emt 0:09:00]} 11. Ne2 {[%emt 0:01:00]} Qf6 12. Qc2 {[%emt 0:01:00]} Qh6 {[%emt 0:28:00]} 13. h3 {[%emt 0:43:00]} f5 14. Ne5 {[%emt 0:02:00]} Ndf6 {[%emt 0:18:59]} 15. Nf4 {[%emt 0:16:06]} Rae8 {[%emt 0:04:07]} 16. f3 {[%emt 0:00:00]} g5 {[%emt 0:08:47]} 17. Ne2 {[%emt 0:00:00]} g4 {[%emt 0:00:00]} 18. Nf4 {[%emt 0:00:00]} Ng3 {[%emt 0:01:17]} 19. Rf2 {[%emt 0:00:00]} Nfh5 {[%emt 0:03:14]} 20. fxg4 {[%emt 0:00:00]} Bxe5 {[%emt 0:00:00]} 21. Nxh5 {[%emt 0:00:00]} Nxh5 22. gxh5 {[%emt 0:00:00]} dxc4 {[%emt 0:00:00]} 23. bxc4 {[%emt 0:01:23]} Bg3 {[%emt 0:00:00]} 24. Re2 {[%emt 0:01:04]} Qxh5 25. Rf1 {[%emt 0:00:28]} Be4 {[%emt 0:00:00]} 26. Ba3 Rf7 {[%emt 0:00:02]} 27. Bxe4 {[%emt 0:07:34]} fxe4 28. Rxf7 {[%emt 0:00:00]} Kxf7 {[%emt 0:00:00]} 29. Rd2 Qf5 {[%emt 0:00:00]} 30. Rd1 {[%emt 0:00:00]} Kg8 {[%emt 0:00:00]} 31. Rf1 {[%emt 0:00:00]} Bh2+ {[%emt 0:00:00]} 32. Kxh2 {[%emt 0:02:05]} Qxf1 {[%emt 0:00:00]} 33. Qxe4 {[%emt 0:00:00]} Qf5 {[%emt 0:00:00]} 34. Qc6 {[%emt 0:00:00]} Qf7 {[%emt 0:00:00]} 35. Bb2 {[%emt 0:00:00]} e5 {[%emt 0:00:00]} 36. dxe5 {[%emt 0:00:29]} Qe6 {[%emt 0:00:01]} 37. Qe4 {[%emt 0:00:18]} b5 {[%emt 0:00:00]} 38. c5 {[%emt 0:00:00]} Re7 {[%emt 0:00:00]} 39. a3 {[%emt 0:00:00]} Qg6 {[%emt 0:00:00]} 40. Qd5+ {[%emt 0:00:00]} Qe6 {[%emt 0:00:00]} 41. Qd8+ {[%emt 0:03:01]} Kf7 {[%emt 0:03:01]} 42. Bd4 {[%emt 0:00:00]} Qc6 {[%emt 0:00:00]} 43. Qh8 {[%emt 0:00:00]} Qg6 {[%emt 0:11:31]} 44. Qa8 {[%emt 0:09:08]} Qe6 {[%emt 0:00:28]} 45. Qh8 {[%emt 0:00:00]} Kg6 {[%emt 0:00:00]} 46. Qa8 {[%emt 0:00:00]} Kf7 {[%emt 0:00:00]} 47. Qh8 {[%emt 0:01:53]} Qg6 {[%emt 0:00:00]} 48. Qa8 {[%emt 0:00:00]} Qe6 {[%emt 0:00:00]} 1/2-1/2

[Event "Cesenatico Open 2019"]
[Site "Cesenatico"]
[Date "2019.09.07"]
[Round "8"]
[White "Voltolini, Giuseppe"]
[Black "Medici, Simone"]
[Result "1/2-1/2"]
[ECO "E01"]
[WhiteElo "2115"]
[BlackElo "2201"]
[Annotator "ChessBase"]
[PlyCount "44"]
[EventDate "2019.09.01"]
[EventType "swiss"]
[EventCountry "ITA"]
[SourceTitle "playchess.com"]
[Source "ChessBase"]
[SourceQuality "1"]
[TimeControl "40/6000:900"]

1. d4 {[%emt 0:00:00]} d5 {[%emt 0:00:00]} 2. c4 {[%emt 0:00:00]} e6 {[%emt 0:00:00]} 3. Nf3 {[%emt 0:00:00]} Nf6 {[%emt 0:00:00]} 4. g3 {[%emt 0:00:00]} Nbd7 {[%emt 0:07:00]} 5. Bg2 {[%emt 0:00:00]} c6 {[%emt 0:03:00]} 6. b3 Bd6 {[%emt 0:00:00]} 7. Bb2 {[%emt 0:09:00]} Qe7 {[%emt 0:10:00]} 8. Nbd2 e5 {[%emt 0:03:00]} 9. cxd5 {[%emt 0:16:00]} Nxd5 {[%emt 0:05:00]} 10. dxe5 {[%emt 0:05:00]} Nxe5 {[%emt 0:00:00]} 11. O-O {[%emt 0:02:00]} O-O 12. Nxe5 {[%emt 0:02:00]} Bxe5 {[%emt 0:00:00]} 13. Bxe5 {[%emt 0:00:00]} Qxe5 {[%emt 0:00:00]} 14. Nc4 {[%emt 0:01:00]} Qg5 {[%emt 0:17:00]} 15. Bxd5 {[%emt 0:00:00]} cxd5 {[%emt 0:01:00]} 16. Ne3 {[%emt 0:22:00]} Bh3 {[%emt 0:11:00]} 17. Re1 {[%emt 0:00:00]} Rad8 {[%emt 0:00:00]} 18. Qd4 {[%emt 0:07:00]} Rfe8 {[%emt 0:00:00]} 19. Rad1 {[%emt 0:01:00]} h5 {[%emt 0:25:00]} 20. f4 Qg6 {[%emt 0:08:31]} 21. Nxd5 {[%emt 0:12:00]} Rd7 {[%emt 0:00:00]} 22. e4 {[%emt 0:02:00]} Kh8 {[%emt 0:03:51]} 1/2-1/2

[Event "Cesenatico Open 2019"]
[Site "Cesenatico"]
[Date "2019.09.07"]
[Round "8"]
[White "Paleologu, Vladimir"]
[Black "Dittmar, Peter"]
[Result "0-1"]
[ECO "B13"]
[WhiteElo "2105"]
[BlackElo "2259"]
[Annotator "ChessBase"]
[PlyCount "98"]
[EventDate "2019.09.01"]
[EventType "swiss"]
[EventCountry "ITA"]
[SourceTitle "playchess.com"]
[Source "ChessBase"]
[SourceQuality "1"]
[TimeControl "40/6000:900"]

1. e4 {[%emt 0:17:00]} c6 {[%emt 0:00:00]} 2. d4 {[%emt 0:01:00]} d5 {[%emt 0:17:00]} 3. exd5 {[%emt 0:00:00]} cxd5 {[%emt 0:00:00]} 4. Bd3 {[%emt 0:00:00]} Nc6 {[%emt 0:00:00]} 5. c3 {[%emt 0:00:00]} Qc7 {[%emt 0:00:00]} 6. Ne2 Bg4 {[%emt 0:00:00]} 7. O-O {[%emt 0:06:00]} e6 {[%emt 0:00:00]} 8. Nd2 {[%emt 0:00:00]} Bd6 {[%emt 0:00:00]} 9. h3 {[%emt 0:13:00]} Bh5 {[%emt 0:00:00]} 10. b4 Nf6 {[%emt 0:00:00]} 11. a4 {[%emt 0:09:00]} O-O {[%emt 0:00:00]} 12. Ba3 {[%emt 0:03:00]} Rac8 {[%emt 0:00:00]} 13. b5 {[%emt 0:11:00]} Bxa3 14. Rxa3 {[%emt 0:00:00]} Na5 {[%emt 0:00:00]} 15. f4 {[%emt 0:00:00]} Bg6 {[%emt 0:00:00]} 16. f5 {[%emt 0:03:00]} Bxf5 {[%emt 0:00:00]} 17. Bxf5 {[%emt 0:00:00]} exf5 {[%emt 0:00:00]} 18. Rxf5 {[%emt 0:00:00]} Rfe8 19. Ra1 {[%emt 0:07:00]} Ne4 {[%emt 0:29:00]} 20. Nxe4 {[%emt 0:00:00]} Rxe4 {[%emt 0:01:00]} 21. Rf3 {[%emt 0:05:00]} Nc4 {[%emt 0:03:00]} 22. Qc2 {[%emt 0:00:00]} Rce8 {[%emt 0:09:00]} 23. Ng3 {[%emt 0:08:30]} R4e6 24. Qd3 {[%emt 0:03:36]} Re3 {[%emt 0:06:00]} 25. Qf5 {[%emt 0:00:00]} Rxf3 {[%emt 0:11:00]} 26. Qxf3 {[%emt 0:02:51]} Re3 {[%emt 0:00:00]} 27. Qxd5 {[%emt 0:00:00]} Rxg3 {[%emt 0:06:21]} 28. Re1 {[%emt 0:00:00]} g6 {[%emt 0:00:00]} 29. Re8+ {[%emt 0:00:36]} Kg7 {[%emt 0:00:00]} 30. Qc5 {[%emt 0:00:00]} Qxc5 {[%emt 0:00:00]} 31. dxc5 {[%emt 0:00:00]} Rxc3 {[%emt 0:00:00]} 32. Ra8 {[%emt 0:00:12]} Nb2 {[%emt 0:01:14]} 33. Rxa7 {[%emt 0:04:15]} Rxc5 {[%emt 0:00:11]} 34. b6 {[%emt 0:00:04]} Nxa4 35. Rxa4 {[%emt 0:00:00]} Rb5 {[%emt 0:01:26]} 36. Kh2 Rxb6 {[%emt 0:00:00]} 37. Kg3 {[%emt 0:00:00]} f5 {[%emt 0:09:30]} 38. Rd4 {[%emt 0:00:00]} Kf6 {[%emt 0:00:00]} 39. h4 {[%emt 0:00:00]} h6 {[%emt 0:00:00]} 40. Rd3 {[%emt 0:00:00]} Re6 {[%emt 0:00:00]} 41. Rd7 {[%emt 0:14:36]} b6 {[%emt 0:09:47]} 42. Rh7 {[%emt 0:00:00]} Re7 {[%emt 0:00:06]} 43. Rh8 {[%emt 0:00:00]} Rb7 {[%emt 0:04:16]} 44. h5 {[%emt 0:00:00]} Kg7 {[%emt 0:00:00]} 45. Rc8 {[%emt 0:00:00]} b5 {[%emt 0:00:00]} 46. Kf4 {[%emt 0:00:00]} b4 {[%emt 0:02:26]} 47. Rc2 {[%emt 0:01:37]} b3 {[%emt 0:00:00]} 48. Rb2 {[%emt 0:00:00]} Rb4+ {[%emt 0:00:00]} 49. Ke5 {[%emt 0:00:00]} Rb5+ {[%emt 0:00:00]} 0-1

[Event "Cesenatico Open 2019"]
[Site "Cesenatico"]
[Date "2019.09.07"]
[Round "8"]
[White "Guerini, Silvia jr"]
[Black "Mrdja, Milan"]
[Result "0-1"]
[ECO "B85"]
[WhiteElo "1974"]
[BlackElo "2279"]
[Annotator "ChessBase"]
[PlyCount "132"]
[EventDate "2019.09.01"]
[EventType "swiss"]
[EventCountry "ITA"]
[SourceTitle "playchess.com"]
[Source "ChessBase"]
[SourceQuality "1"]
[TimeControl "40/6000:900"]

1. e4 {[%emt 0:00:00]} c5 {[%emt 0:18:00]} 2. Nf3 {[%emt 0:00:00]} d6 {[%emt 0:00:00]} 3. d4 {[%emt 0:00:00]} cxd4 {[%emt 0:00:00]} 4. Nxd4 {[%emt 0:00:00]} Nf6 {[%emt 0:00:00]} 5. Nc3 {[%emt 0:00:00]} e6 {[%emt 0:00:00]} 6. Be2 Be7 {[%emt 0:00:00]} 7. O-O {[%emt 0:00:00]} O-O {[%emt 0:00:00]} 8. Be3 a6 {[%emt 0:10:00]} 9. f4 {[%emt 0:00:00]} Nbd7 {[%emt 0:00:00]} 10. Qe1 {[%emt 0:00:00]} Qc7 {[%emt 0:10:00]} 11. Kh1 {[%emt 0:08:00]} Kh8 {[%emt 0:00:00]} 12. Qg3 {[%emt 0:05:00]} g6 {[%emt 0:34:00]} 13. Rae1 {[%emt 0:15:00]} b5 {[%emt 0:02:00]} 14. a3 {[%emt 0:00:00]} Bb7 {[%emt 0:00:00]} 15. Bd3 {[%emt 0:54:28]} Nc5 {[%emt 0:08:28]} 16. Bd2 {[%emt 0:00:00]} Rac8 {[%emt 0:01:43]} 17. Nf3 {[%emt 0:00:00]} Nxd3 {[%emt 0:00:16]} 18. cxd3 {[%emt 0:00:00]} Qd7 19. Ng5 {[%emt 0:00:00]} Nh5 {[%emt 0:11:30]} 20. Qh3 f5 {[%emt 0:00:00]} 21. exf5 {[%emt 0:00:00]} exf5 {[%emt 0:00:00]} 22. Re2 {[%emt 0:01:06]} Bf6 {[%emt 0:00:00]} 23. Rfe1 {[%emt 0:11:45]} Rfe8 {[%emt 0:00:00]} 24. d4 {[%emt 0:00:00]} Rxe2 {[%emt 0:00:00]} 25. Rxe2 {[%emt 0:00:00]} Re8 {[%emt 0:01:52]} 26. Qd3 {[%emt 0:02:48]} Kg8 {[%emt 0:00:18]} 27. Rxe8+ {[%emt 0:00:00]} Qxe8 {[%emt 0:00:00]} 28. d5 {[%emt 0:00:00]} Ng7 {[%emt 0:00:00]} 29. h3 {[%emt 0:00:00]} h6 {[%emt 0:00:00]} 30. Nf3 {[%emt 0:00:00]} Qf7 {[%emt 0:00:00]} 31. Nd4 {[%emt 0:00:00]} Bxd5 {[%emt 0:00:00]} 32. Nxf5 {[%emt 0:00:00]} Bxg2+ {[%emt 0:00:00]} 33. Kxg2 {[%emt 0:00:00]} Nxf5 {[%emt 0:00:00]} 34. b4 {[%emt 0:00:00]} Qb3 {[%emt 0:00:10]} 35. Qd5+ {[%emt 0:00:00]} Qxd5+ {[%emt 0:00:00]} 36. Nxd5 {[%emt 0:00:06]} Bd8 {[%emt 0:00:05]} 37. Bc3 {[%emt 0:00:09]} Kf7 {[%emt 0:00:00]} 38. Kf3 {[%emt 0:00:00]} Ke6 {[%emt 0:00:00]} 39. Ke4 {[%emt 0:00:58]} Ng3+ {[%emt 0:00:00]} 40. Kd4 {[%emt 0:00:00]} Nf5+ {[%emt 0:00:00]} 41. Ke4 {[%emt 0:00:00]} Ne7 {[%emt 0:00:00]} 42. Ne3 {[%emt 0:01:40]} Bb6 {[%emt 0:06:26]} 43. Ng2 {[%emt 0:03:48]} Nf5 {[%emt 0:00:00]} 44. Ne1 {[%emt 0:00:00]} d5+ {[%emt 0:00:00]} 45. Kd3 {[%emt 0:01:38]} Nd6 {[%emt 0:03:05]} 46. Bg7 {[%emt 0:01:27]} Nf5 {[%emt 0:00:00]} 47. Bc3 {[%emt 0:00:00]} Be3 {[%emt 0:00:00]} 48. Bd2 {[%emt 0:00:00]} Bd4 {[%emt 0:00:46]} 49. Bc3 {[%emt 0:00:46]} Bb6 {[%emt 0:00:00]} 50. Nf3 {[%emt 0:04:26]} Bf2 {[%emt 0:04:26]} 51. Be1 {[%emt 0:00:00]} Bxe1 {[%emt 0:00:00]} 52. Nxe1 {[%emt 0:00:00]} Nd6 {[%emt 0:00:00]} 53. Nf3 {[%emt 0:00:00]} Nc4 {[%emt 0:00:00]} 54. Nd4+ {[%emt 0:00:00]} Kf6 {[%emt 0:00:00]} 55. Nc2 {[%emt 0:00:00]} Kf5 {[%emt 0:00:00]} 56. Kd4 {[%emt 0:00:00]} Kxf4 {[%emt 0:00:00]} 57. Kxd5 {[%emt 0:00:00]} Ne3+ {[%emt 0:00:00]} 58. Nxe3 {[%emt 0:00:00]} Kxe3 {[%emt 0:00:00]} 59. Kc5 {[%emt 0:00:00]} g5 {[%emt 0:00:00]} 60. Kb6 {[%emt 0:00:00]} h5 {[%emt 0:00:00]} 61. Kxa6 {[%emt 0:00:00]} g4 {[%emt 0:00:00]} 62. hxg4 {[%emt 0:00:00]} hxg4 {[%emt 0:00:00]} 63. Kxb5 {[%emt 0:00:00]} g3 {[%emt 0:00:00]} 64. a4 {[%emt 0:00:00]} g2 {[%emt 0:00:00]} 65. a5 {[%emt 0:00:00]} g1=Q {[%emt 0:00:00]} 66. a6 {[%emt 0:00:00]} Kd3 {[%emt 0:00:00]} 0-1

[Event "Cesenatico Open 2019"]
[Site "Cesenatico"]
[Date "2019.09.09"]
[Round "9"]
[White "Dragojlovic, Andjelko"]
[Black "Dobboletta, Alex"]
[Result "1-0"]
[ECO "B53"]
[WhiteElo "2293"]
[BlackElo "2176"]
[Annotator "ChessBase"]
[PlyCount "63"]
[EventDate "2019.09.01"]
[EventType "swiss"]
[EventCountry "ITA"]
[SourceTitle "playchess.com"]
[Source "ChessBase"]
[SourceQuality "1"]
[TimeControl "40/6000:900"]

1. e4 {[%emt 0:05:00]} c5 {[%emt 0:10:00]} 2. Nf3 {[%emt 0:00:00]} d6 {[%emt 0:00:00]} 3. d4 {[%emt 0:01:00]} cxd4 {[%emt 0:00:00]} 4. Qxd4 {[%emt 0:00:00]} Nc6 {[%emt 0:03:00]} 5. Bb5 {[%emt 0:00:00]} Bd7 {[%emt 0:04:00]} 6. Bxc6 {[%emt 0:11:00]} Bxc6 {[%emt 0:00:00]} 7. Nc3 {[%emt 0:00:00]} e6 {[%emt 0:04:00]} 8. Bg5 {[%emt 0:00:00]} Nf6 {[%emt 0:04:00]} 9. O-O-O {[%emt 0:00:00]} Be7 10. Rhe1 {[%emt 0:00:00]} Qb6 {[%emt 0:17:00]} 11. Qxb6 {[%emt 0:00:00]} axb6 12. a3 {[%emt 0:00:00]} h6 {[%emt 0:07:00]} 13. Bh4 Rd8 {[%emt 0:00:00]} 14. Nd4 {[%emt 0:09:00]} d5 {[%emt 0:18:00]} 15. e5 Nd7 {[%emt 0:00:00]} 16. Bxe7 {[%emt 0:02:00]} Kxe7 17. f4 {[%emt 0:00:00]} g6 {[%emt 0:01:00]} 18. b4 {[%emt 0:03:00]} b5 {[%emt 0:00:00]} 19. a4 {[%emt 0:02:00]} Nb6 {[%emt 0:02:00]} 20. a5 {[%emt 0:00:00]} Nc4 {[%emt 0:00:00]} 21. Rd3 {[%emt 0:08:00]} h5 {[%emt 0:07:00]} 22. Ncxb5 {[%emt 0:36:00]} Bxb5 {[%emt 0:00:00]} 23. Nxb5 {[%emt 0:00:00]} Ra8 {[%emt 0:01:00]} 24. Na3 {[%emt 0:00:00]} Nxa3 {[%emt 0:01:00]} 25. Rxa3 {[%emt 0:00:00]} b6 {[%emt 0:00:00]} 26. Ree3 {[%emt 0:00:00]} bxa5 {[%emt 0:00:00]} 27. bxa5 {[%emt 0:00:00]} Rhc8 {[%emt 0:00:00]} 28. Reb3 {[%emt 0:00:00]} Rc7 {[%emt 0:01:49]} 29. a6 {[%emt 0:00:00]} Kd7 {[%emt 0:01:28]} 30. Kd2 {[%emt 0:00:00]} Rca7 {[%emt 0:00:00]} 31. Rb6 {[%emt 0:00:00]} Kc7 {[%emt 0:03:07]} 32. Rd6 {[%emt 0:00:00]} 1-0

[Event "Cesenatico Open 2019"]
[Site "Cesenatico"]
[Date "2019.09.09"]
[Round "9"]
[White "Dittmar, Peter"]
[Black "Voltolini, Giuseppe"]
[Result "1-0"]
[ECO "D36"]
[WhiteElo "2259"]
[BlackElo "2115"]
[Annotator "ChessBase"]
[PlyCount "137"]
[EventDate "2019.09.01"]
[EventType "swiss"]
[EventCountry "ITA"]
[SourceTitle "playchess.com"]
[Source "ChessBase"]
[SourceQuality "1"]
[TimeControl "40/6000:900"]

1. d4 {[%emt 0:01:00]} Nf6 {[%emt 0:00:00]} 2. c4 {[%emt 0:00:00]} e6 {[%emt 0:00:00]} 3. Nc3 {[%emt 0:00:00]} d5 {[%emt 0:01:00]} 4. cxd5 {[%emt 0:00:00]} exd5 {[%emt 0:00:00]} 5. Bg5 {[%emt 0:00:00]} Be7 {[%emt 0:00:00]} 6. e3 c6 {[%emt 0:00:00]} 7. Qc2 {[%emt 0:00:00]} Nbd7 {[%emt 0:03:00]} 8. Bd3 O-O {[%emt 0:02:00]} 9. Nf3 {[%emt 0:02:00]} Re8 {[%emt 0:02:00]} 10. O-O {[%emt 0:00:00]} Nf8 {[%emt 0:03:00]} 11. h3 {[%emt 0:00:00]} Nh5 {[%emt 0:00:00]} 12. Bxe7 {[%emt 0:02:00]} Qxe7 {[%emt 0:05:00]} 13. Rab1 {[%emt 0:05:00]} a5 {[%emt 0:00:00]} 14. a3 {[%emt 0:00:00]} Nf6 {[%emt 0:00:00]} 15. b4 {[%emt 0:13:00]} axb4 {[%emt 0:07:00]} 16. axb4 {[%emt 0:00:00]} N8d7 {[%emt 0:03:00]} 17. b5 {[%emt 0:00:00]} c5 {[%emt 0:04:00]} 18. dxc5 {[%emt 0:00:00]} Nxc5 {[%emt 0:00:00]} 19. Rfd1 {[%emt 0:01:00]} Be6 {[%emt 0:00:00]} 20. Nd4 {[%emt 0:05:00]} Rec8 {[%emt 0:00:00]} 21. Qb2 {[%emt 0:00:00]} Nxd3 {[%emt 0:09:00]} 22. Rxd3 Qc5 {[%emt 0:00:00]} 23. Nce2 {[%emt 0:02:00]} h6 {[%emt 0:03:00]} 24. Rc3 {[%emt 0:05:00]} Qb6 {[%emt 0:03:00]} 25. Rxc8+ {[%emt 0:06:00]} Rxc8 26. Rc1 {[%emt 0:00:00]} Rc5 {[%emt 0:13:00]} 27. Ra1 {[%emt 0:26:00]} Rc8 {[%emt 0:10:00]} 28. Qa3 {[%emt 0:00:00]} Ne4 {[%emt 0:05:00]} 29. Nf4 {[%emt 0:00:00]} Qd6 {[%emt 0:15:45]} 30. Qxd6 {[%emt 0:00:00]} Nxd6 {[%emt 0:00:00]} 31. Nfxe6 {[%emt 0:00:00]} fxe6 {[%emt 0:00:00]} 32. Nxe6 {[%emt 0:21:10]} Nxb5 {[%emt 0:00:25]} 33. Rb1 {[%emt 0:00:00]} Nd6 {[%emt 0:02:02]} 34. Rd1 {[%emt 0:00:00]} Ne4 {[%emt 0:00:00]} 35. Rxd5 {[%emt 0:00:00]} Rc6 36. Nd8 {[%emt 0:00:00]} Rc1+ {[%emt 0:06:46]} 37. Kh2 Nxf2 {[%emt 0:00:00]} 38. Nxb7 {[%emt 0:00:00]} Ne4 {[%emt 0:00:00]} 39. Rd4 {[%emt 0:00:00]} Nf6 {[%emt 0:00:00]} 40. Nd6 {[%emt 0:10:18]} Kf8 {[%emt 0:01:30]} 41. Rc4 {[%emt 0:00:00]} Rxc4 {[%emt 0:03:05]} 42. Nxc4 {[%emt 0:00:00]} Ke7 {[%emt 0:00:00]} 43. Kg3 {[%emt 0:00:00]} Ke6 44. Kf4 {[%emt 0:00:00]} g5+ {[%emt 0:00:00]} 45. Kf3 Kd5 {[%emt 0:00:00]} 46. Nd2 {[%emt 0:00:00]} Ke5 {[%emt 0:00:00]} 47. g4 {[%emt 0:00:00]} Kd5 {[%emt 0:00:00]} 48. Nf1 Ke6 49. Ng3 {[%emt 0:00:00]} Ke5 {[%emt 0:00:00]} 50. Ke2 {[%emt 0:00:00]} Nd5 {[%emt 0:05:58]} 51. Kf3 {[%emt 0:00:00]} Nf6 {[%emt 0:00:00]} 52. Nf1 {[%emt 0:00:00]} Kd5 {[%emt 0:00:00]} 53. Nd2 {[%emt 0:09:17]} Ke5 {[%emt 0:00:00]} 54. Ke2 {[%emt 0:00:00]} Nd5 {[%emt 0:00:00]} 55. Nc4+ {[%emt 0:00:00]} Ke6 56. Kf3 {[%emt 0:00:00]} Nf6 {[%emt 0:00:00]} 57. e4 {[%emt 0:00:00]} Nd7 {[%emt 0:02:41]} 58. Ke3 {[%emt 0:02:08]} Nf6 {[%emt 0:00:00]} 59. Nd2 {[%emt 0:00:00]} Nd7 {[%emt 0:00:00]} 60. Nf3 {[%emt 0:00:00]} Nf6 {[%emt 0:00:00]} 61. Kd4 {[%emt 0:00:00]} Nd7 {[%emt 0:00:00]} 62. e5 {[%emt 0:00:00]} Nf8 {[%emt 0:00:00]} 63. Ke4 {[%emt 0:00:00]} Ng6 {[%emt 0:02:29]} 64. Nd4+ {[%emt 0:00:00]} Kf7 65. Kd5 {[%emt 0:00:00]} Nf4+ {[%emt 0:00:00]} 66. Kd6 Nxh3 {[%emt 0:00:00]} 67. e6+ {[%emt 0:00:00]} Ke8 68. Nf5 {[%emt 0:00:00]} Nf2 {[%emt 0:00:00]} 69. Ng7+ 1-0

[Event "Cesenatico Open 2019"]
[Site "Cesenatico"]
[Date "2019.09.09"]
[Round "9"]
[White "Medici, Simone"]
[Black "Stromboli, Carlo"]
[Result "1-0"]
[ECO "D37"]
[WhiteElo "2201"]
[BlackElo "2270"]
[Annotator "ChessBase"]
[PlyCount "87"]
[EventDate "2019.09.01"]
[EventType "swiss"]
[EventCountry "ITA"]
[SourceTitle "playchess.com"]
[Source "ChessBase"]
[SourceQuality "1"]
[TimeControl "40/6000:900"]

1. d4 {[%emt 0:00:00]} Nf6 {[%emt 0:09:00]} 2. c4 {[%emt 0:00:00]} e6 {[%emt 0:00:00]} 3. Nf3 {[%emt 0:00:00]} d5 {[%emt 0:01:00]} 4. Nc3 {[%emt 0:00:00]} a6 5. cxd5 {[%emt 0:03:00]} exd5 {[%emt 0:03:00]} 6. Bf4 {[%emt 0:16:00]} Bd6 {[%emt 0:06:00]} 7. Bg3 {[%emt 0:00:00]} O-O {[%emt 0:02:00]} 8. e3 c5 {[%emt 0:06:00]} 9. Bxd6 {[%emt 0:00:00]} Qxd6 {[%emt 0:03:00]} 10. dxc5 {[%emt 0:00:00]} Qxc5 {[%emt 0:00:00]} 11. Qd4 {[%emt 0:00:00]} Qa5 12. Be2 {[%emt 0:03:00]} Nc6 {[%emt 0:08:00]} 13. Qd2 {[%emt 0:19:00]} Rd8 {[%emt 0:03:00]} 14. Nd4 {[%emt 0:00:00]} Bg4 {[%emt 0:09:00]} 15. Bxg4 {[%emt 0:00:00]} Nxg4 {[%emt 0:00:00]} 16. Rd1 {[%emt 0:03:00]} Qc7 {[%emt 0:03:00]} 17. Qe2 {[%emt 0:09:00]} Nf6 {[%emt 0:00:00]} 18. O-O {[%emt 0:01:00]} Ne5 {[%emt 0:31:15]} 19. h3 {[%emt 0:01:00]} Rac8 {[%emt 0:02:28]} 20. Nf5 Kf8 {[%emt 0:04:42]} 21. Qd2 {[%emt 0:11:00]} Qd7 {[%emt 0:00:00]} 22. Ng3 {[%emt 0:00:00]} Kg8 {[%emt 0:06:43]} 23. b3 Qc7 {[%emt 0:00:00]} 24. Rc1 {[%emt 0:10:00]} Qd7 {[%emt 0:00:00]} 25. Rfd1 {[%emt 0:00:00]} Rc6 {[%emt 0:01:13]} 26. Qd4 {[%emt 0:01:00]} Qe6 27. e4 {[%emt 0:01:00]} Rcd6 {[%emt 0:00:00]} 28. exd5 Nc6 {[%emt 0:00:00]} 29. Qb6 {[%emt 0:11:34]} Nxd5 30. Nxd5 {[%emt 0:01:20]} Rxd5 {[%emt 0:00:00]} 31. Rxd5 {[%emt 0:00:00]} Rxd5 {[%emt 0:00:00]} 32. Qxb7 {[%emt 0:00:00]} Nd8 33. Qa8 {[%emt 0:02:56]} g6 {[%emt 0:00:00]} 34. Rc8 Qd6 {[%emt 0:00:00]} 35. Qb8 {[%emt 0:04:58]} Rd1+ 36. Kh2 {[%emt 0:00:00]} Qd4 {[%emt 0:00:00]} 37. Ne2 Qd7 {[%emt 0:00:00]} 38. Nc3 {[%emt 0:00:11]} Rd4 {[%emt 0:00:00]} 39. Ne4 {[%emt 0:00:01]} Kf8 {[%emt 0:00:00]} 40. Nc5 {[%emt 0:00:00]} Qd6+ {[%emt 0:00:00]} 41. Qxd6+ {[%emt 0:05:39]} Rxd6 {[%emt 0:05:18]} 42. Nb7 {[%emt 0:00:00]} Rb6 {[%emt 0:00:00]} 43. Nxd8 {[%emt 0:00:00]} Ke7 {[%emt 0:00:00]} 44. Rc6 {[%emt 0:00:00]} 1-0